bitfinex/quotes_BTCUSD_20241107
["timestamp","ask_amount","ask_price","bid_price","bid_amount"]
[1730951805085,0.001666,75040.0,75039.0,0.15306538]
[1730951810812,0.001666,75040.0,75039.0,0.02054955]
[1730951811872,0.001666,75040.0,75037.0,0.00110781]
[1730951816575,0.001666,75040.0,75037.0,0.00310781]
[1730951817783,0.001666,75040.0,75037.0,0.00110781]
[1730951819186,0.001666,75040.0,75037.0,0.000833]
[1730951819400,0.0481,75039.0,75038.0,0.09970623]
[1730951819622,0.0481,75039.0,75037.0,0.000833]
[1730951819623,0.1236,75039.0,75037.0,0.10053923]
[1730951819829,0.1236,75039.0,75038.0,0.07976632]
[1730951822314,0.1236,75039.0,75038.0,0.10030973]
[1730951822524,0.1236,75039.0,75038.0,0.07976562]
[1730951823613,0.1236,75039.0,75037.0,0.08059862]
[1730951824790,1.6236,75039.0,75037.0,0.08059862]
[1730951825196,0.1236,75039.0,75037.0,0.08059862]
[1730951826535,0.1236,75039.0,75037.0,0.10119847]
[1730951827368,0.1236,75039.0,75037.0,0.08062096]
[1730951827575,0.1236,75039.0,75038.0,0.07978796]
[1730951827776,0.1236,75039.0,75037.0,0.08062096]
[1730951829311,0.1236,75039.0,75037.0,0.06068625]
[1730951829477,0.1236,75039.0,75038.0,0.05985325]
[1730951829855,0.1236,75039.0,75037.0,0.06068625]
[1730951830263,0.1236,75039.0,75038.0,0.05985325]
[1730951830989,0.1236,75039.0,75038.0,0.08632912]
[1730951831392,0.1236,75039.0,75038.0,0.0264694]
[1730951831756,0.1236,75039.0,75038.0,0.10625736]
[1730951832150,0.1236,75039.0,75038.0,0.0264694]
[1730951832490,0.1236,75039.0,75038.0,0.05986084]
[1730951832893,0.1236,75039.0,75037.0,0.08062096]
[1730951835182,0.001666,75040.0,75038.0,0.07978796]
[1730951835455,0.001666,75040.0,75039.0,0.09976383]
[1730951835624,0.001666,75040.0,75037.0,0.08672503]
[1730951835831,0.001666,75040.0,75039.0,0.002]
[1730951836261,0.001666,75040.0,75038.0,0.02328918]
[1730951836469,0.001666,75040.0,75039.0,0.09976883]
[1730951837339,0.001666,75040.0,75039.0,0.09976894]
[1730951837763,0.001666,75040.0,75038.0,0.02328918]
[1730951837984,0.001666,75040.0,75039.0,0.0256181]
[1730951838187,0.001666,75040.0,75038.0,0.002]
[1730951838391,0.001666,75040.0,75038.0,0.002833]
[1730951839683,0.001666,75040.0,75038.0,0.000833]
[1730951840341,0.001666,75040.0,75038.0,0.002833]
[1730951840609,0.001666,75040.0,75039.0,0.02337248]
[1730951841073,0.001666,75040.0,75039.0,0.02803753]
[1730951841302,0.001666,75040.0,75039.0,0.02337248]
[1730951841720,0.001666,75040.0,75039.0,0.15751583]
[1730951841938,0.001666,75040.0,75039.0,0.28538082]
[1730951842562,0.001666,75040.0,75039.0,0.28271583]
[1730951843449,0.001666,75040.0,75039.0,0.15751583]
[1730951844094,0.001666,75040.0,75039.0,0.15551583]
[1730951844310,0.001666,75040.0,75039.0,0.20468571]
[1730951844529,0.001666,75040.0,75039.0,0.32439685]
[1730951844755,0.001666,75040.0,75039.0,0.32639685]
[1730951845015,0.001666,75040.0,75039.0,0.20668571]
[1730951845448,0.001666,75040.0,75039.0,0.32639069]
[1730951846082,0.001666,75040.0,75039.0,0.20668571]
[1730951846892,0.001666,75040.0,75039.0,0.32639069]
[1730951848090,0.001666,75040.0,75039.0,0.20668571]
[1730951848468,0.001666,75040.0,75039.0,0.32639069]
[1730951849342,0.001666,75040.0,75039.0,0.20668571]
[1730951849741,0.001666,75040.0,75039.0,0.32639069]
[1730951849944,0.001666,75040.0,75039.0,0.20751871]
[1730951850329,0.001666,75040.0,75039.0,0.32722369]
[1730951851226,0.001666,75040.0,75039.0,0.20751871]
[1730951852142,0.001666,75040.0,75039.0,0.32722369]
[1730951852809,0.001666,75040.0,75039.0,0.25305381]
[1730951853016,0.001666,75040.0,75039.0,0.13334883]
[1730951857555,0.001666,75040.0,75039.0,0.13534883]
[1730951858235,0.001666,75040.0,75039.0,0.16101389]
[1730951858462,0.001666,75040.0,75039.0,0.28071887]
[1730951858668,0.001666,75040.0,75039.0,0.23920071]
[1730951858869,0.001666,75040.0,75039.0,0.27785264]
[1730951859063,0.001666,75040.0,75039.0,0.40465264]
[1730951859293,0.001666,75040.0,75039.0,0.40198758]
[1730951859494,0.001666,75040.0,75039.0,0.54001181]
[1730951859722,0.001666,75040.0,75039.0,0.64552597]
[1730951859919,0.001666,75040.0,75039.0,0.46884981]
[1730951860196,0.001666,75040.0,75039.0,0.64550192]
[1730951860816,0.001666,75040.0,75039.0,0.64498687]
[1730951861405,0.001666,75040.0,75039.0,0.63998776]
[1730951862394,0.001666,75040.0,75039.0,0.46333565]
[1730951863351,0.001666,75040.0,75039.0,0.63998776]
[1730951863917,0.001666,75040.0,75039.0,0.46333565]
[1730951867221,0.001666,75040.0,75039.0,0.46884981]
[1730951867627,0.001666,75040.0,75039.0,0.50748772]
[1730951870815,0.001666,75040.0,75039.0,0.6839437]
[1730951871348,0.1978931,75055.0,75054.0,0.00227481]
[1730951871575,0.1978931,75055.0,75054.0,0.42608457]
[1730951871795,0.09416,75066.0,75063.0,0.00227481]
[1730951871796,0.01496,75066.0,75063.0,0.00227481]
[1730951872137,0.01496,75066.0,75063.0,0.21746797]
[1730951872326,0.00199913,75064.0,75063.0,0.29710043]
[1730951872891,0.00199913,75064.0,75063.0,0.24046797]
[1730951873067,0.00199913,75064.0,75063.0,0.24313207]
[1730951873462,0.00199913,75064.0,75063.0,0.37696959]
[1730951873642,0.00199913,75064.0,75063.0,0.19178579]
[1730951873852,0.00199913,75064.0,75063.0,0.27473793]
[1730951875225,0.00199913,75064.0,75063.0,0.29849527]
[1730951876338,0.00199913,75064.0,75063.0,0.21554313]
[1730951876459,0.00199913,75064.0,75063.0,0.29849527]
[1730951876849,0.00199913,75064.0,75063.0,0.39792114]
[1730951878227,0.00199913,75064.0,75063.0,0.29849527]
[1730951879051,0.00199913,75064.0,75063.0,0.39792114]
[1730951879299,0.00199913,75064.0,75063.0,0.21554313]
[1730951879472,0.00199913,75064.0,75063.0,0.29849527]
[1730951881607,0.00199913,75064.0,75063.0,0.39792114]
[1730951881787,0.00199913,75064.0,75063.0,0.39787311]
[1730951882224,0.00199913,75064.0,75063.0,0.39849527]
[1730951883341,0.00199913,75064.0,75063.0,0.31554313]
[1730951883564,0.00199913,75064.0,75063.0,0.39849527]
[1730951883764,0.01496,75066.0,75064.0,0.12527481]
[1730951883897,0.01496,75066.0,75064.0,0.30143269]
[1730951884522,0.01496,75066.0,75064.0,0.38438483]
[1730951884918,0.083266,75065.0,75064.0,0.29943269]
[1730951885386,0.083266,75065.0,75064.0,0.30143269]
[1730951888414,0.083266,75065.0,75064.0,0.3610248]
[1730951891893,0.083266,75065.0,75064.0,0.3590248]
[1730951892108,0.049,75064.0,75063.0,0.02375734]
[1730951892286,0.1311,75064.0,75063.0,0.02375734]
[1730951892540,0.0821,75063.0,75057.0,0.00027481]
[1730951892749,0.0821,75063.0,75058.0,0.13224102]
[1730951893393,0.001666,75065.0,75057.0,0.02364092]
[1730951893394,0.049,75062.0,75057.0,0.02364092]
[1730951893569,0.049,75060.0,75057.0,0.02364092]
[1730951893720,0.049,75060.0,75053.0,0.05987434]
[1730951893721,0.0821,75059.0,75053.0,0.05987434]
[1730951893921,0.1311,75059.0,75055.0,0.1]
[1730951894147,0.1311,75059.0,75055.0,0.102]
[1730951894521,0.1311,75059.0,75057.0,0.002]
[1730951894967,0.1311,75059.0,75055.0,0.18495214]
[1730951895358,0.1311,75059.0,75055.0,0.18295214]
[1730951895538,0.1311,75059.0,75056.0,0.05042102]
[1730951896402,0.1311,75059.0,75057.0,0.002]
[1730951896811,0.1311,75059.0,75058.0,0.15551583]
[1730951897048,0.0821,75059.0,75058.0,0.15551583]
[1730951897475,0.001666,75064.0,75063.0,0.02527481]
[1730951897673,0.001666,75064.0,75063.0,0.34164556]
[1730951897830,0.001666,75064.0,75063.0,0.26217951]
[1730951898030,0.001666,75064.0,75063.0,0.26484365]
[1730951898440,0.001666,75064.0,75063.0,0.26217951]
[1730951898643,0.001666,75064.0,75063.0,0.34430966]
[1730951898837,0.001666,75064.0,75063.0,0.26217951]
[1730951899003,0.001666,75064.0,75063.0,0.34164556]
[1730951899400,0.001666,75064.0,75063.0,0.17922737]
[1730951899625,0.001666,75064.0,75063.0,0.36417607]
[1730951899823,0.001666,75064.0,75063.0,0.36151207]
[1730951900035,0.001666,75064.0,75063.0,0.26217951]
[1730951900431,0.001666,75064.0,75063.0,0.26484347]
[1730951900781,0.0148002,75066.0,75065.0,0.02527481]
[1730951900978,0.0148002,75066.0,75065.0,0.18397217]
[1730951901143,0.0148002,75066.0,75065.0,0.28338045]
[1730951901772,0.0148002,75066.0,75065.0,0.2807165]
[1730951902417,0.0148002,75066.0,75065.0,0.18130822]
[1730951909149,0.0164662,75066.0,75065.0,0.18130822]
[1730951911412,0.0164662,75066.0,75065.0,0.30073829]
[1730951912223,0.0164662,75066.0,75065.0,0.18130822]
[1730951914355,0.0164662,75066.0,75065.0,0.26426036]
[1730951914631,0.0164662,75066.0,75065.0,0.38381347]
[1730951915562,0.0164662,75066.0,75065.0,0.26426036]
[1730951917746,0.0164662,75066.0,75065.0,0.18130822]
[1730951919572,0.01611687,75066.0,75065.0,0.18130822]
[1730951920454,0.01611687,75066.0,75065.0,0.18214122]
[1730951921586,0.06241687,75066.0,75065.0,0.28214122]
[1730951922954,0.14551687,75066.0,75065.0,0.28214122]
[1730951923618,0.14551687,75066.0,75065.0,0.28014122]
[1730951926194,0.01611687,75066.0,75065.0,0.28014122]
[1730951926409,0.01611687,75066.0,75065.0,0.28214122]
[1730951930045,0.001668,75067.0,75066.0,0.02527481]
[1730951930270,0.001668,75067.0,75066.0,0.19882963]
[1730951930474,0.001668,75067.0,75066.0,0.23750525]
[1730951930682,0.001668,75067.0,75066.0,0.19882963]
[1730951931611,0.001668,75067.0,75066.0,0.23751999]
[1730951932687,0.001668,75067.0,75066.0,0.33751999]
[1730951934721,0.001668,75067.0,75066.0,0.42047213]
[1730951934975,0.001668,75067.0,75066.0,0.33751999]
[1730951935339,0.001668,75067.0,75066.0,0.42047213]
[1730951935552,0.001668,75067.0,75066.0,0.33751999]
[1730951935887,0.001668,75067.0,75066.0,0.42047213]
[1730951936430,0.001668,75067.0,75066.0,0.33751999]
[1730951936647,0.001668,75067.0,75066.0,0.42047213]
[1730951936851,0.001668,75067.0,75066.0,0.33751999]
[1730951937866,0.001668,75078.0,75076.0,0.00227481]
[1730951938063,0.001668,75078.0,75076.0,0.24046797]
[1730951938486,0.001668,75078.0,75077.0,0.02527481]
[1730951938691,0.001668,75078.0,75077.0,0.27709554]
[1730951939985,0.001668,75078.0,75077.0,0.15751583]
[1730951940224,0.001668,75078.0,75077.0,0.18130822]
[1730951944563,0.00154067,75078.0,75077.0,0.18130822]
[1730951945471,0.00154067,75078.0,75077.0,0.28130822]
[1730951945664,0.00154067,75078.0,75077.0,0.28397179]
[1730951946188,0.00154067,75078.0,75077.0,0.46340805]
[1730951946323,0.00154067,75078.0,75077.0,0.3254654]
[1730951949586,0.00154067,75078.0,75077.0,0.40841754]
[1730951950306,0.00154067,75078.0,75077.0,0.54623473]
[1730951950757,0.00154067,75078.0,75077.0,0.54623239]
[1730951951727,0.00154067,75078.0,75077.0,0.40839081]
[1730951953851,0.12604067,75078.0,75077.0,0.25524102]
[1730951954171,0.12604067,75078.0,75077.0,0.13251583]
[1730951954938,0.12604067,75078.0,75077.0,0.13451583]
[1730951955144,0.12604067,75078.0,75077.0,0.13251583]
[1730951955407,0.12604067,75078.0,75077.0,0.26846559]
[1730951956434,0.12604067,75078.0,75077.0,0.29146559]
[1730951959707,0.00154067,75078.0,75077.0,0.29346559]
[1730951961244,0.00154067,75078.0,75077.0,0.29146559]
[1730951962325,0.00154067,75078.0,75077.0,0.29346559]
[1730951964099,0.00154067,75078.0,75077.0,0.29146559]
[1730951964947,0.00085491,75078.0,75077.0,0.29146559]
[1730951965694,0.00085491,75078.0,75077.0,0.29346559]
[1730951966816,0.00085491,75078.0,75077.0,0.29146559]
[1730951967484,0.00085491,75078.0,75077.0,0.29346559]
[1730951970878,0.00085491,75078.0,75077.0,0.26846559]
[1730951971081,0.13543986,75078.0,75077.0,0.27506702]
[1730951971258,0.13543986,75078.0,75077.0,0.13251583]
[1730951979942,0.13543986,75078.0,75077.0,0.13224102]
[1730951980274,0.00448495,75075.0,75071.0,0.11955119]
[1730951980486,0.0789,75074.0,75072.0,0.07974974]
[1730951980696,0.08853224,75078.0,75072.0,0.05981479]
[1730951980697,0.00448495,75073.0,75072.0,0.05981479]
[1730951980875,0.00448495,75072.0,75071.0,0.07974974]
[1730951981097,0.13058495,75072.0,75071.0,0.07974974]
[1730951981300,0.00448495,75070.0,75069.0,0.07974974]
[1730951981530,0.13058495,75070.0,75069.0,0.07974974]
[1730951981954,0.08853224,75078.0,75067.0,0.12438523]
[1730951981955,0.13178495,75069.0,75067.0,0.08055516]
[1730951982212,0.13178495,75068.0,75067.0,0.08055516]
[1730951982452,0.13178495,75068.0,75067.0,0.000833]
[1730951982850,0.13178495,75068.0,75067.0,0.06060469]
[1730951983048,0.13178495,75068.0,75067.0,0.000833]
[1730951991283,0.13178495,75068.0,75067.0,0.000833]
[1730951998670,1.63178495,75068.0,75067.0,0.000833]
[1730952000316,1.63113495,75068.0,75067.0,0.000833]
[1730952001700,0.13113495,75068.0,75067.0,0.000833]
[1730952003711,0.08413495,75068.0,75067.0,0.000833]
[1730952004524,0.08580095,75068.0,75067.0,0.000833]
[1730952004935,0.13570095,75068.0,75067.0,0.000833]
[1730952009500,0.00550095,75068.0,75067.0,0.000833]
[1730952010396,0.00550095,75068.0,75067.0,0.13307402]
[1730952010630,0.00550095,75068.0,75067.0,0.14889657]
[1730952010859,0.00550095,75068.0,75067.0,0.14917138]
[1730952011751,0.12920095,75068.0,75067.0,0.000833]
[1730952013102,0.12920095,75068.0,75067.0,0.00499459]
[1730952013548,0.12904503,75068.0,75067.0,0.00499459]
[1730952014415,0.12892849,75068.0,75067.0,0.00499457]
[1730952014634,0.12869382,75068.0,75067.0,0.000833]
[1730952014847,0.12869382,75068.0,75067.0,0.0049946]
[1730952015052,0.00499382,75068.0,75067.0,0.13723562]
[1730952015272,0.00499382,75068.0,75067.0,0.15349166]
[1730952015705,0.0048379,75068.0,75067.0,0.15349166]
[1730952016355,0.0048379,75068.0,75067.0,0.23313865]
[1730952016805,0.0048379,75068.0,75067.0,0.23315853]
[1730952017228,0.0048379,75068.0,75067.0,0.0049946]
[1730952017461,0.13906309,75068.0,75067.0,0.0049946]
[1730952017704,0.13906309,75068.0,75067.0,0.06475586]
[1730952017942,1.63906309,75068.0,75067.0,0.0049946]
[1730952018238,1.63906309,75068.0,75067.0,0.06059355]
[1730952018465,1.63906309,75068.0,75067.0,0.000833]
[1730952018713,0.13410323,75068.0,75067.0,0.000833]
[1730952018962,0.13371105,75068.0,75067.0,0.02490176]
[1730952019220,0.13371105,75068.0,75067.0,0.08466231]
[1730952019470,0.08701105,75068.0,75067.0,0.10460037]
[1730952019706,0.0416745,75102.0,75067.0,0.08467726]
[1730952019707,0.0795,75072.0,75067.0,0.08467726]
[1730952020446,0.0795,75072.0,75068.0,0.0597755]
[1730952020670,0.0795,75072.0,75070.0,0.0597755]
[1730952020899,0.0795,75072.0,75069.0,0.01652109]
[1730952021345,0.07891253,75072.0,75069.0,0.07629659]
[1730952021572,0.07891253,75072.0,75068.0,0.05979178]
[1730952022706,0.07891253,75072.0,75070.0,0.05979178]
[1730952022925,0.07879599,75072.0,75070.0,0.05979178]
[1730952023143,0.07879599,75072.0,75067.0,0.06062478]
[1730952023365,0.08295214,75070.0,75068.0,0.05979178]
[1730952023580,0.08295214,75070.0,75067.0,0.000833]
[1730952023819,0.0468,75074.0,75067.0,0.02491631]
[1730952024042,0.0468,75074.0,75067.0,0.08470809]
[1730952024249,0.0468,75074.0,75068.0,0.05979178]
[1730952024889,1.5,75073.0,75068.0,0.05979178]
[1730952025091,1.5,75073.0,75067.0,0.08470809]
[1730952025297,1.5,75073.0,75068.0,0.05979178]
[1730952025957,0.0767,75072.0,75068.0,0.05979178]
[1730952026163,0.0767,75072.0,75067.0,0.000833]
[1730952027748,0.0482,75071.0,75067.0,0.000833]
[1730952028006,0.0785,75070.0,75067.0,0.000833]
[1730952028442,0.0482,75071.0,75067.0,0.000833]
[1730952028443,0.0797,75068.0,75067.0,0.000833]
[1730952028681,0.0797,75068.0,75067.0,0.06070449]
[1730952029099,0.0797,75068.0,75067.0,0.000833]
[1730952029506,0.0797,75068.0,75067.0,0.06070449]
[1730952029717,0.0797,75068.0,75067.0,0.08065603]
[1730952029919,0.0797,75068.0,75067.0,0.000833]
[1730952030261,0.0797,75068.0,75067.0,0.08065615]
[1730952030705,0.0797,75068.0,75067.0,0.000833]
[1730952030911,0.0797,75068.0,75067.0,0.08065615]
[1730952031528,0.0797,75068.0,75067.0,0.000833]
[1730952031737,1.5797,75068.0,75067.0,0.08065232]
[1730952031969,0.0797,75068.0,75067.0,0.08065232]
[1730952032172,0.0797,75068.0,75067.0,0.000833]
[1730952032618,0.0797,75068.0,75067.0,0.08065137]
[1730952032958,0.0797,75068.0,75067.0,0.08065041]
[1730952033408,0.015,75069.0,75067.0,0.01895879]
[1730952033623,0.015,75069.0,75067.0,0.000833]
[1730952034494,0.01493339,75069.0,75067.0,0.000833]
[1730952038784,0.1259,75068.0,75067.0,0.10059912]
[1730952038937,0.1259,75068.0,75067.0,0.000833]
[1730952039136,0.1259,75068.0,75067.0,0.08064904]
[1730952039359,1.6259,75068.0,75067.0,0.08064904]
[1730952039900,0.0794,75068.0,75067.0,0.0189581]
[1730952040102,0.0794,75068.0,75067.0,0.11872706]
[1730952040931,0.0794,75068.0,75067.0,0.10060196]
[1730952041413,0.01493339,75069.0,75067.0,0.000833]
[1730952041617,0.01493339,75069.0,75068.0,0.09976505]
[1730952041833,0.01493339,75069.0,75067.0,0.000833]
[1730952041834,1.51493339,75069.0,75067.0,0.000833]
[1730952042036,1.56023339,75069.0,75067.0,0.10059873]
[1730952042240,1.56023339,75069.0,75068.0,0.05986204]
[1730952042440,0.0773,75068.0,75067.0,0.06069504]
[1730952043402,0.0773,75068.0,75067.0,0.000833]
[1730952044639,0.0773,75068.0,75067.0,0.06069163]
[1730952044863,0.0773,75068.0,75067.0,0.0806475]
[1730952045109,0.0773,75068.0,75067.0,0.000833]
[1730952045333,0.0773,75068.0,75067.0,0.06069153]
[1730952045553,0.0773,75068.0,75067.0,0.000833]
[1730952045782,1.5773,75068.0,75067.0,0.000833]
[1730952046224,0.0773,75068.0,75067.0,0.000833]
[1730952048222,1.5773,75068.0,75067.0,0.000833]
[1730952049287,0.0773,75068.0,75067.0,0.000833]
[1730952049518,0.0773,75068.0,75067.0,0.08479976]
[1730952049952,0.0773,75068.0,75067.0,0.08478974]
[1730952050100,0.0773,75068.0,75067.0,0.0249425]
[1730952050701,0.0773,75068.0,75067.0,0.10473666]
[1730952051028,0.01493339,75069.0,75067.0,0.10473666]
[1730952051416,0.01493339,75069.0,75068.0,0.02053124]
[1730952051859,0.01493339,75069.0,75067.0,0.08062716]
[1730952052071,0.01493339,75069.0,75067.0,0.0606798]
[1730952052464,0.01493339,75069.0,75068.0,0.0598468]
[1730952052663,0.13693339,75069.0,75068.0,0.0598468]
[1730952052862,0.13693339,75069.0,75067.0,0.0606798]
[1730952053093,0.13693339,75069.0,75068.0,0.0598468]
[1730952053298,0.13693339,75069.0,75067.0,0.0606798]
[1730952054240,1.5,75068.0,75067.0,0.000833]
[1730952054398,1.5,75068.0,75067.0,0.0606798]
[1730952054774,1.5,75068.0,75067.0,0.000833]
[1730952055360,1.5,75068.0,75067.0,0.06068109]
[1730952055832,1.5,75068.0,75067.0,0.000833]
[1730952056600,1.5,75068.0,75067.0,0.06068109]
[1730952057752,0.13859939,75069.0,75067.0,0.06068109]
[1730952057753,0.13859939,75069.0,75067.0,0.000833]
[1730952057947,0.13859939,75069.0,75068.0,0.05985725]
[1730952058185,0.22155153,75069.0,75068.0,0.05985725]
[1730952058391,0.0801,75068.0,75067.0,0.000833]
[1730952058854,1.5801,75068.0,75067.0,0.000833]
[1730952062657,0.0801,75068.0,75067.0,0.000833]
[1730952065256,0.01659939,75069.0,75067.0,0.000833]
[1730952065448,0.01659939,75069.0,75067.0,0.06069089]
[1730952065600,0.01659939,75069.0,75067.0,0.000833]
[1730952066189,0.01659939,75069.0,75068.0,0.05985789]
[1730952067708,0.01659939,75069.0,75067.0,0.08064353]
[1730952068618,1.5,75068.0,75067.0,0.08064353]
[1730952070669,1.5,75068.0,75067.0,0.000833]
[1730952070875,0.01659939,75069.0,75067.0,0.01097592]
[1730952071166,0.01659939,75069.0,75068.0,0.0798189]
[1730952071296,0.01659939,75069.0,75067.0,0.11073908]
[1730952071495,0.01659939,75069.0,75068.0,0.00416174]
[1730952072791,0.09955153,75069.0,75068.0,0.00416152]
[1730952072995,0.09955153,75069.0,75068.0,0.06402492]
[1730952073200,0.09955153,75069.0,75068.0,0.00416152]
[1730952073424,0.17675153,75069.0,75068.0,0.06402513]
[1730952073641,0.17675153,75069.0,75068.0,0.00416152]
[1730952074460,0.09379939,75069.0,75068.0,0.00416152]
[1730952074840,1.59379939,75069.0,75068.0,0.00416152]
[1730952075197,1.59379939,75069.0,75068.0,0.06402462]
[1730952075798,1.59379939,75069.0,75068.0,0.00416152]
[1730952076013,1.64359939,75069.0,75068.0,0.00416152]
[1730952076227,1.56639939,75069.0,75067.0,0.000833]
[1730952076443,0.16425214,75068.0,75067.0,0.000833]
[1730952076663,0.16425214,75068.0,75067.0,0.00499517]
[1730952078196,0.16425214,75068.0,75067.0,0.06485827]
[1730952078884,0.16425214,75068.0,75067.0,0.00499517]
[1730952079456,0.29649316,75068.0,75067.0,0.00499517]
[1730952079682,0.34229316,75068.0,75067.0,0.000833]
[1730952079974,1.84229316,75068.0,75067.0,0.000833]
[1730952082048,2.16439828,75068.0,75067.0,0.000833]
[1730952082316,2.24735042,75068.0,75067.0,0.000833]
[1730952082545,2.42099566,75068.0,75067.0,0.000833]
[1730952082958,2.21974793,75068.0,75067.0,0.000833]
[1730952083124,2.21774793,75068.0,75067.0,0.000833]
[1730952084055,1.86934102,75068.0,75067.0,0.000833]
[1730952084379,1.95229316,75068.0,75067.0,0.000833]
[1730952085837,1.94729316,75068.0,75067.0,0.000833]
[1730952086184,1.95229316,75068.0,75067.0,0.000833]
[1730952087535,1.86434102,75068.0,75067.0,0.000833]
[1730952087754,1.86934102,75068.0,75067.0,0.000833]
[1730952088068,1.85934102,75068.0,75067.0,0.000833]
[1730952090311,1.86434102,75068.0,75067.0,0.000833]
[1730952091697,1.86934102,75068.0,75067.0,0.000833]
[1730952093292,1.87134102,75068.0,75067.0,0.000833]
[1730952093921,2.00455302,75068.0,75067.0,0.000833]
[1730952094519,2.00348731,75068.0,75067.0,0.000833]
[1730952094717,2.00148731,75068.0,75067.0,0.000833]
[1730952096544,1.86827531,75068.0,75067.0,0.000833]
[1730952096867,2.00148731,75068.0,75067.0,0.000833]
[1730952098287,2.13373008,75068.0,75067.0,0.000833]
[1730952098421,2.00148731,75068.0,75067.0,0.000833]
[1730952100968,2.00315331,75068.0,75067.0,0.000833]
[1730952102259,2.00515331,75068.0,75067.0,0.000833]
[1730952102799,1.86994131,75068.0,75067.0,0.000833]
[1730952104831,1.87194131,75068.0,75067.0,0.000833]
[1730952105236,1.86994131,75068.0,75067.0,0.000833]
[1730952105609,2.00218408,75068.0,75067.0,0.000833]
[1730952107208,1.86994131,75068.0,75067.0,0.000833]
[1730952108761,1.87194131,75068.0,75067.0,0.000833]
[1730952109341,1.95290782,75068.0,75067.0,0.000833]
[1730952111554,2.08611982,75068.0,75067.0,0.000833]
[1730952115566,2.1275172,75068.0,75067.0,0.000833]
[1730952115748,2.25975997,75068.0,75067.0,0.000833]
[1730952116777,2.1275172,75068.0,75067.0,0.000833]
[1730952117637,2.1295172,75068.0,75067.0,0.000833]
[1730952117852,1.86553869,75068.0,75067.0,0.000833]
[1730952118020,1.9485052,75068.0,75067.0,0.000833]
[1730952119546,1.86553869,75068.0,75067.0,0.000833]
[1730952119900,1.82414131,75068.0,75067.0,0.000833]
[1730952120432,1.86559027,75068.0,75067.0,0.000833]
[1730952121467,1.93539743,75068.0,75067.0,0.000833]
[1730952122349,1.86559027,75068.0,75067.0,0.000833]
[1730952124297,1.91089027,75068.0,75067.0,0.000833]
[1730952127595,1.95054275,75068.0,75067.0,0.000833]
[1730952128222,0.45054275,75068.0,75067.0,0.000833]
[1730952129211,0.58375475,75068.0,75067.0,0.000833]
[1730952129824,0.45054275,75068.0,75067.0,0.000833]
[1730952130237,0.58375475,75068.0,75067.0,0.000833]
[1730952130464,0.58575475,75068.0,75067.0,0.000833]
[1730952130819,0.71799752,75068.0,75067.0,0.000833]
[1730952131027,0.67834504,75068.0,75067.0,0.000833]
[1730952131355,0.67634504,75068.0,75067.0,0.000833]
[1730952131912,0.54610227,75068.0,75067.0,0.000833]
[1730952132124,0.62540723,75068.0,75067.0,0.000833]
[1730952132350,0.60382459,75068.0,75067.0,0.000833]
[1730952132550,0.54410227,75068.0,75067.0,0.000833]
[1730952132975,0.60382297,75068.0,75067.0,0.000833]
[1730952133325,0.64212235,75068.0,75067.0,0.000833]
[1730952133531,0.56249866,75068.0,75067.0,0.000833]
[1730952133733,0.66200634,75068.0,75067.0,0.000833]
[1730952134357,0.56049866,75068.0,75067.0,0.000833]
[1730952134538,0.56249866,75068.0,75067.0,0.000833]
[1730952134857,0.54610227,75068.0,75067.0,0.000833]
[1730952135060,0.64360995,75068.0,75067.0,0.000833]
[1730952135263,0.54610227,75068.0,75067.0,0.000833]
[1730952135427,0.64560995,75068.0,75067.0,0.000833]
[1730952135860,0.54610227,75068.0,75067.0,0.000833]
[1730952136432,0.64360995,75068.0,75067.0,0.000833]
[1730952136943,0.64560995,75068.0,75067.0,0.000833]
[1730952137152,0.54610227,75068.0,75067.0,0.000833]
[1730952137720,0.6536587,75068.0,75067.0,0.000833]
[1730952137922,0.62299539,75068.0,75067.0,0.000833]
[1730952138122,0.7059619,75068.0,75067.0,0.000833]
[1730952139293,0.82543249,75068.0,75067.0,0.000833]
[1730952139545,0.7059619,75068.0,75067.0,0.000833]
[1730952139749,0.95767526,75068.0,75067.0,0.000833]
[1730952140234,0.83820467,75068.0,75067.0,0.000833]
[1730952140439,0.95767526,75068.0,75067.0,0.000833]
[1730952140644,0.86120467,75068.0,75067.0,0.000833]
[1730952141675,0.60276569,75068.0,75067.0,0.00038918]
[1730952141868,0.6857322,75068.0,75067.0,0.00038918]
[1730952142073,0.6857322,75068.0,75067.0,0.00016727]
[1730952142293,0.68545028,75068.0,75067.0,0.00016727]
[1730952144917,0.74541679,75068.0,75067.0,0.00016727]
[1730952145123,0.74541679,75068.0,75041.0,0.000833]
[1730952145124,0.01,75047.0,75041.0,0.000833]
[1730952145449,0.08296651,75046.0,75041.0,0.000833]
[1730952145855,0.01,75047.0,75041.0,0.000833]
[1730952146488,0.01,75047.0,75042.0,0.0456]
[1730952147405,0.1159106,75050.0,75041.0,0.000833]
[1730952147406,0.01,75042.0,75041.0,0.000833]
[1730952148257,0.09296651,75042.0,75041.0,0.000833]
[1730952148828,0.23419621,75042.0,75041.0,0.000833]
[1730952149238,0.40318165,75042.0,75041.0,0.000833]
[1730952149850,0.40518157,75042.0,75041.0,0.000833]
[1730952151013,0.36843715,75042.0,75041.0,0.000833]
[1730952152143,0.39245981,75042.0,75041.0,0.000833]
[1730952153553,0.35123011,75042.0,75041.0,0.000833]
[1730952153782,0.00199992,75042.0,75041.0,0.045933]
[1730952156174,0.1,75051.0,75043.0,0.0487]
[1730952157128,0.1978931,75052.0,75043.0,0.0487]
[1730952157129,0.1978931,75052.0,75043.0,0.0620232]
[1730952157402,0.0412297,75050.0,75043.0,0.0487]
[1730952157872,0.08296651,75044.0,75043.0,0.0487]
[1730952158115,0.08296651,75044.0,75041.0,0.000833]
[1730952158345,0.08296651,75048.0,75041.0,0.000833]
[1730952158568,0.21520753,75048.0,75041.0,0.000833]
[1730952159266,0.26524759,75048.0,75041.0,0.000833]
[1730952161604,0.21520753,75048.0,75041.0,0.000833]
[1730952162805,0.08296651,75043.0,75041.0,0.000833]
[1730952163526,0.85705175,75042.0,75041.0,0.000833]
[1730952163766,0.44893703,75042.0,75041.0,0.000833]
[1730952164008,0.49922852,75042.0,75041.0,0.000833]
[1730952164249,0.65447129,75042.0,75041.0,0.000833]
[1730952164475,0.52222852,75042.0,75041.0,0.000833]
[1730952164940,0.60519503,75042.0,75041.0,0.000833]
[1730952165446,0.64828968,75042.0,75041.0,0.000833]
[1730952165675,0.68951938,75042.0,75041.0,0.000833]
[1730952165909,0.64828968,75042.0,75041.0,0.000833]